fUST/lending_fUST_20241015
["ID","MTS","AMOUNT","RATE_DAILY","PERIOD"]
[340259321,1728937839893,-1857.647187,0.0002581,7]
[340259322,1728937839902,-2662.572087,0.0002581,7]
[340259323,1728937839912,-2662.572087,0.0002581,7]
[340259324,1728937839921,-187.610453,0.0002581,7]
[340259325,1728937839931,-187.610453,0.0002581,7]
[340259326,1728937839942,-187.38942215,0.00025819,2]
[340259327,1728937839952,-247.70472174,0.00025819,2]
[340259328,1728937839961,-241.33835694,0.00025819,2]
[340259329,1728937839979,-269.32055238,0.00025819,2]
[340259330,1728937839988,-256.40029714,0.00025819,2]
[340259331,1728937839999,-267.14321988,0.00025819,2]
[340259332,1728937840009,-3000.0,0.0002582,2]
[340259333,1728937840019,-1303.46792,0.0002582,7]
[340259334,1728937840028,-1303.46792,0.0002582,7]
[340259335,1728937840038,-1036.36557,0.0002582,7]
[340259336,1728937840048,-1036.36557,0.0002582,7]
[340259337,1728937840058,-790.509405,0.0002582,7]
[340259338,1728937840068,-790.509405,0.0002582,7]
[340259340,1728937840078,-151.0,0.0002582,7]
[340259341,1728937840087,-151.0,0.0002582,7]
[340259342,1728937840097,-230.465031,0.0002582,7]
[340259343,1728937840106,-230.465031,0.0002582,7]
[340259345,1728937840116,-251.44421,0.0002582,7]
[340259347,1728937840126,-1949.067252,0.0002582,7]
[340259348,1728937840136,-251.44421,0.0002582,7]
[340259349,1728937840146,-1949.067252,0.0002582,7]
[340259350,1728937840156,-242.862037,0.0002582,7]
[340259351,1728937840167,-2421.176106,0.0002582,7]
[340259352,1728937840177,-2421.176106,0.0002582,7]
[340259353,1728937840187,-1857.647187,0.0002582,7]
[340259354,1728937840196,-1857.647187,0.0002582,7]
[340259355,1728937840206,-2662.572087,0.0002582,7]
[340259356,1728937840215,-2662.572087,0.0002582,7]
[340259357,1728937840225,-187.610453,0.0002582,7]
[340259358,1728937840235,-187.610453,0.0002582,7]
[340259361,1728937840245,-5850.0,0.0002583,2]
[340259363,1728937840254,-1011.673426,0.0002583,7]
[340259364,1728937840264,-1011.673426,0.0002583,7]
[340259365,1728937840273,-172.094316,0.0002583,7]
[340259366,1728937840282,-172.094316,0.0002583,7]
[340259367,1728937840291,-230.465031,0.0002583,7]
[340259368,1728937840301,-230.465031,0.0002583,7]
[340259369,1728937840310,-251.44421,0.0002583,7]
[340259370,1728937840319,-251.44421,0.0002583,7]
[340259371,1728937840329,-2421.176106,0.0002583,7]
[340259372,1728937840338,-2421.176106,0.0002583,7]
[340259373,1728937840348,-1857.647187,0.0002583,7]
[340259374,1728937840358,-1857.647187,0.0002583,7]
[340259375,1728937840367,-2662.572087,0.0002583,7]
[340259376,1728937840378,-2662.572087,0.0002583,7]
[340259377,1728937840391,-187.610453,0.0002583,7]
[340259378,1728937840402,-187.610453,0.0002583,7]
[340259379,1728937840412,-500.0,0.00025873,2]
[340259380,1728937840423,-231.98811089,0.00025873,2]
[340259381,1728937840435,-500.0,0.00025873,2]
[340259382,1728937840445,-503.10871388,0.00026988,2]
[340259385,1728937840456,-200.54223426,0.00026988,2]
[340259387,1728937840466,-500.0,0.00026988,2]
[340259389,1728937840476,-500.0,0.00026988,2]
[340259391,1728937840486,-500.0,0.00026988,2]
[340259392,1728937840495,-187.610453,0.00027142,7]
[340259393,1728937840505,-187.610453,0.00027142,7]
[340259394,1728937840514,-1000.0,0.00027142,2]
[340259395,1728937840524,-1000.0,0.00027142,2]
[340259396,1728937840533,-13641.9857351,0.0002716,4]
[340259397,1728937840542,-501.61143008,0.0002717,2]
[340259398,1728937840551,-591.2668584,0.0002717,2]
[340259399,1728937840561,-500.0,0.0002717,2]
[340259400,1728937840571,-1303.46792,0.0002717,7]
[340259401,1728937840581,-1303.46792,0.0002717,7]
[340259402,1728937840590,-1036.36557,0.0002717,7]
[340259403,1728937840599,-1036.36557,0.0002717,7]
[340259404,1728937840609,-790.509405,0.0002717,7]
[340259405,1728937840618,-790.509405,0.0002717,7]
[340259406,1728937840628,-151.0,0.0002717,7]
[340259408,1728937840637,-151.0,0.0002717,7]
[340259410,1728937840646,-230.465031,0.0002717,7]
[340259412,1728937840655,-230.465031,0.0002717,7]
[340259414,1728937840665,-251.44421,0.0002717,7]
[340259416,1728937840675,-1949.067252,0.0002717,7]
[340259418,1728937840684,-251.44421,0.0002717,7]
[340259420,1728937840694,-1949.067252,0.0002717,7]
[340259422,1728937840704,-1857.647187,0.0002717,7]
[340259424,1728937840716,-1857.647187,0.0002717,7]
[340259426,1728937840727,-1857.647187,0.0002717,7]
[340259428,1728937840739,-1857.647187,0.0002717,7]
[340259431,1728937840749,-2662.572087,0.0002717,7]
[340259433,1728937840758,-2662.572087,0.0002717,7]
[340259435,1728937840769,-2662.572087,0.0002717,7]
[340259437,1728937840778,-2662.572087,0.0002717,7]
[340259438,1728937840788,-187.610453,0.0002717,7]
[340259439,1728937840797,-187.610453,0.0002717,7]
[340259441,1728937840808,-150.0,0.0002718,2]
[340259443,1728937840817,-1000.0,0.00027242,2]
[340259445,1728937840826,-428.14773887,0.00027242,2]
[340259447,1728937840836,-500.0,0.00027275,2]
[340259449,1728937840845,-500.0,0.00027275,2]
[340259450,1728937840855,-500.0,0.00027275,2]
[340259451,1728937840864,-502.66824871,0.00027275,2]
[340259452,1728937840874,-502.83373304,0.00027275,2]
[340259453,1728937840883,-420.0,0.00027842,2]
[340259454,1728937840893,-420.0,0.00028291,2]
[340259455,1728937840903,-187.610453,0.00028291,7]
[340259456,1728937840912,-187.610445,0.00028291,7]
[340259457,1728937840921,-1000.0,0.00028357,5]
[340259458,1728937840932,-1000.0,0.00028357,5]
[340259459,1728937840941,-150.0,0.0002855,2]
[340259460,1728937840951,-503.8103702,0.00028645,5]
[340259461,1728937840962,-1000.0,0.00028645,5]
[340259462,1728937840974,-13234.15240443,0.00029,30]
[340259463,1728937840985,-1857.647187,0.00029145,7]
[340259464,1728937840996,-1857.647187,0.00029145,7]
[340259465,1728937841007,-2662.572087,0.00029145,7]
[340259466,1728937841020,-2662.572087,0.00029145,7]
[340259467,1728937841032,-906.4672245,0.00029146,5]
[340259468,1728937841042,-1500.0,0.00029146,5]
[340259469,1728937841053,-1011.673426,0.00029173,7]
[340259470,1728937841063,-1011.673426,0.00029173,7]
[340259471,1728937841074,-172.094316,0.00029173,7]
[340259472,1728937841086,-172.094316,0.00029173,7]
[340259473,1728937841099,-230.465031,0.00029173,7]
[340259474,1728937841110,-230.465031,0.00029173,7]
[340259475,1728937841120,-251.44421,0.00029173,7]
[340259476,1728937841131,-251.44421,0.00029173,7]
[340259477,1728937841141,-2421.176106,0.00029173,7]
[340259478,1728937841151,-2421.176106,0.00029173,7]
[340259479,1728937841160,-1500.0,0.00029246,2]
[340259480,1728937841171,-669.69338798,0.00029549,2]
[340259481,1728937841182,-150.0,0.0002992,2]
[340259482,1728937841193,-228.0,0.0003,2]
[340259483,1728937841205,-587.0,0.0003014,2]
[340259484,1728937841217,-1500.0,0.0003036,5]
[340259485,1728937841226,-1500.0,0.00030648,5]
[340259486,1728937841236,-187.02627035,0.0003065,2]
[340259487,1728937841247,-500.0,0.00030783,5]
[340259488,1728937841257,-500.0,0.00030783,5]
[340259489,1728937841267,-500.0,0.00030783,5]
[340259490,1728937841278,-500.0,0.00030783,5]
[340259491,1728937841287,-504.37965805,0.00030783,5]
[340259492,1728937841299,-500.0,0.00030783,5]
[340259493,1728937841311,-587.0,0.0003112,2]
[340259494,1728937841322,-150.0,0.00031289,2]
[340259495,1728937841331,-2000.0,0.00031487,5]
[340259496,1728937841343,-1857.647187,0.00031487,7]
[340259497,1728937841355,-1857.64717786,0.00031487,7]
[340259498,1728937841365,-2662.572087,0.00031487,7]
[340259499,1728937841376,-2662.572082,0.00031487,7]
[340259500,1728937841386,-1303.46792,0.00031514,7]
[340259501,1728937841397,-1303.46792,0.00031514,7]
[340259502,1728937841407,-1036.36557,0.00031514,7]
[340259503,1728937841417,-1036.36557,0.00031514,7]
[340259504,1728937841428,-790.509405,0.00031514,7]
[340259505,1728937841438,-790.509405,0.00031514,7]
[340259506,1728937841449,-151.0,0.00031514,7]
[340259507,1728937841459,-1011.673426,0.00031514,7]
[340259508,1728937841469,-151.0,0.00031514,7]
[340259509,1728937841478,-1011.673426,0.00031514,7]
[340259510,1728937841487,-172.094316,0.00031514,7]
[340259511,1728937841497,-172.094316,0.00031514,7]
[340259512,1728937841506,-230.465031,0.00031514,7]
[340259513,1728937841515,-230.465031,0.00031514,7]
[340259514,1728937841525,-251.44421,0.00031514,7]
[340259515,1728937841535,-1949.067252,0.00031514,7]
[340259516,1728937841545,-251.44421,0.00031514,7]
[340259517,1728937841555,-1949.067252,0.00031514,7]
[340259518,1728937841567,-2421.176106,0.00031514,7]
[340259519,1728937841577,-2421.176106,0.00031514,7]
[340259520,1728937841586,-2000.0,0.00031587,2]
[340259521,1728937841596,-1000.0,0.00032153,5]
[340259522,1728937841607,-1000.0,0.00032153,5]
[340259523,1728937841620,-151.91212279,0.00032354,2]
[340259524,1728937841631,-823.0,0.00032627,2]
[340259525,1728937841641,-159.128743,0.00032659,2]
[340259526,1728937841651,-2000.0,0.00032701,5]
[340259527,1728937841660,-2000.0,0.00032989,5]
[340259528,1728937841669,-228.0,0.00033,2]
[340259529,1728937841679,-228.0,0.00033,2]
[340259530,1728937841688,-669.69338798,0.00033407,2]
[340259531,1728937841700,-13641.9857351,0.00034068,5]
[340259532,1728937841710,-405.87691892,0.00034086,5]
[340259533,1728937841721,-230.465031,0.00034105,14]
[340259534,1728937841735,-230.465031,0.00034105,14]
[340259535,1728937841745,-251.44421,0.00034105,14]
[340259536,1728937841755,-251.44421,0.00034105,14]
[340259537,1728937841765,-2421.176106,0.00034105,14]
[340259538,1728937841775,-2421.176106,0.00034105,14]
[340259539,1728937841785,-1500.0,0.00034156,5]
[340259540,1728937841794,-1500.0,0.00034156,5]
[340259541,1728937841805,-1025.02376877,0.00034178,2]
[340259542,1728937841815,-788.0,0.00034232,2]
[340259543,1728937841827,-2131.03828416,0.00035,2]
[340259544,1728937841837,-1745.77907276,0.00035,7]
[340259545,1728937841847,-934.8980624,0.00035,30]
[340259546,1728937841857,-2500.0,0.00035293,5]
[340259547,1728937841942,-1011.673426,0.00035308,14]
[340259548,1728937841952,-1011.673426,0.00035308,14]
[340259549,1728937841962,-172.094316,0.00035308,14]
[340259550,1728937841971,-172.094316,0.00035308,14]
[340259551,1728937841981,-1152.0,0.0003532,2]
[340259552,1728937841991,-2000.0,0.0003558,5]
[340259553,1728937842000,-228.0,0.00036,2]
[340259554,1728937842013,-228.0,0.00036,2]
[340259555,1728937842024,-259.67871198,0.0003624,2]
[340259556,1728937842035,-2000.0,0.00036497,5]
[340259557,1728937842044,-2000.0,0.00036497,5]
[340259558,1728937842055,-228.0,0.00036699,2]
[340259559,1728937842065,-150.0,0.000367,2]
[340259560,1728937842075,-1303.46792,0.000367,14]
[340259561,1728937842084,-1303.46792,0.000367,14]
[340259562,1728937842094,-1036.36557,0.000367,14]
[340259563,1728937842103,-1036.36557,0.000367,14]
[340259564,1728937842112,-790.509405,0.000367,14]
[340259565,1728937842121,-790.509405,0.000367,14]
[340259566,1728937842131,-151.0,0.000367,14]
[340259567,1728937842140,-151.0,0.000367,14]
[340259568,1728937842149,-230.465031,0.000367,14]
[340259569,1728937842159,-230.465025,0.000367,14]
[340259570,1728937842169,-251.44421,0.000367,14]
[340259571,1728937842178,-1949.067252,0.000367,14]
[340259572,1728937842187,-251.444201,0.000367,14]
[340259573,1728937842197,-1949.067252,0.000367,14]
[340259574,1728937842207,-2421.176106,0.000367,14]
[340259575,1728937842217,-2421.176103,0.000367,14]
[340259576,1728937842227,-669.69338798,0.00037266,2]
[340259577,1728937842238,-588.32085679,0.00038088,5]
[340259578,1728937842248,-1524.0,0.00038235,2]
[340259579,1728937842257,-582.6075,0.00038356,7]
[340259580,1728937842266,-500.0,0.00038356,60]
[340259581,1728937842276,-500.0,0.00038356,60]
[340259582,1728937842285,-500.0,0.00038356,2]
[340259583,1728937842294,-7544.13,0.00038356,60]
[340259584,1728937842303,-500.0,0.00038356,60]
[340259585,1728937842312,-5049.84,0.00038356,21]
[340259586,1728937842321,-216.557224,0.00038356,2]
[340259587,1728937842331,-13641.9857351,0.00038489,5]
[340259588,1728937842341,-27283.9714702,0.0003849,5]
[340259589,1728937842350,-500.0,0.00038499,60]
[340259590,1728937842359,-500.0,0.00038499,60]
[340259591,1728937842368,-500.0,0.00038499,60]
[340259592,1728937842378,-500.0,0.00038499,60]
[340259593,1728937842388,-500.0,0.00038499,60]
[340259594,1728937842399,-500.0,0.00038499,60]
[340259595,1728937842408,-1303.46792,0.00038499,14]
[340259596,1728937842417,-1303.46792,0.00038499,14]
[340259597,1728937842427,-1303.46792,0.00038499,14]
[340259598,1728937842436,-1303.46792,0.00038499,14]
[340259599,1728937842446,-1303.46792,0.00038499,14]
[340259600,1728937842456,-1303.46792,0.00038499,14]
[340259601,1728937842465,-500.0,0.00038499,60]
[340259602,1728937842476,-1036.36557,0.00038499,14]
[340259603,1728937842486,-1036.36557,0.00038499,14]
[340259604,1728937842495,-1036.36557,0.00038499,14]
[340259605,1728937842505,-1036.36557,0.00038499,14]
[340259606,1728937842514,-1036.36557,0.00038499,14]
[340259607,1728937842523,-1036.36557,0.00038499,14]
[340259608,1728937842535,-790.509405,0.00038499,14]
[340259609,1728937842545,-790.509405,0.00038499,14]
[340259610,1728937842556,-790.509405,0.00038499,14]
[340259611,1728937842568,-790.509405,0.00038499,14]
[340259612,1728937842578,-790.509405,0.00038499,14]
[340259613,1728937842590,-790.509405,0.00038499,14]
[340259614,1728937842599,-500.0,0.00038499,60]
[340259615,1728937842610,-151.0,0.00038499,14]
[340259616,1728937842620,-151.0,0.00038499,14]
[340259617,1728937842630,-151.0,0.00038499,14]
[340259618,1728937842641,-1011.673426,0.00038499,14]
[340259619,1728937842652,-1011.673426,0.00038499,14]
[340259620,1728937842662,-1011.673426,0.00038499,14]
[340259621,1728937842672,-151.0,0.00038499,14]
[340259622,1728937842681,-151.0,0.00038499,14]
[340259623,1728937842691,-192.190465,0.00038499,14]
[340259624,1728937842702,-500.0,0.00038499,30]
[340259625,1728937842712,-500.0,0.00038499,60]
[340259626,1728937842724,-1011.673426,0.00038499,14]
[340259627,1728937842739,-1011.673426,0.00038499,14]
[340259628,1728937842750,-1011.673426,0.00038499,14]
[340259629,1728937842760,-546.64653873,0.00038499,60]
[340259630,1728937842771,-500.0,0.00038499,60]
[340259631,1728937842781,-172.094316,0.00038499,14]
[340259632,1728937842791,-172.094316,0.00038499,14]
[340259633,1728937842801,-172.094316,0.00038499,14]
[340259634,1728937842812,-172.094316,0.00038499,14]
[340259635,1728937842822,-172.094316,0.00038499,14]
[340259636,1728937842831,-172.094316,0.00038499,14]
[340259637,1728937842841,-500.0,0.00038499,60]
[340259638,1728937842851,-500.0,0.00038499,60]
[340259639,1728937842862,-500.0,0.00038499,60]
[340259640,1728937842872,-500.0,0.00038499,60]
[340259641,1728937842884,-1000.0,0.00038499,60]
[340259642,1728937842895,-1949.067252,0.00038499,14]
[340259643,1728937842906,-1949.067252,0.00038499,14]
[340259644,1728937842916,-1949.067252,0.00038499,14]
[340259645,1728937842927,-500.0,0.00038499,60]
[340259646,1728937842940,-500.0,0.00038499,60]
[340259647,1728937842951,-1949.067252,0.00038499,14]
[340259648,1728937842961,-1949.067252,0.00038499,14]
[340259649,1728937842973,-1949.067252,0.00038499,14]
[340259650,1728937842983,-500.0,0.00038499,60]
[340259651,1728937842992,-500.0,0.00038499,60]
[340259652,1728937843002,-500.0,0.00038499,60]
[340259653,1728937843013,-500.0,0.00038499,60]
[340259654,1728937843024,-1950.61,0.00038499,60]
[340259655,1728937843035,-408.13,0.00038499,60]
[340259656,1728937843044,-500.0,0.00038499,60]
[340259657,1728937843054,-500.0,0.00038499,60]
[340259658,1728937843064,-500.0,0.00038499,60]
[340259659,1728937843073,-33559.35603725,0.000385,5]
[340259660,1728937843083,-1303.46792,0.000385,14]
[340259661,1728937843093,-1303.46792,0.000385,14]
[340259662,1728937843103,-1303.46792,0.000385,14]
[340259663,1728937843112,-1303.467914,0.000385,14]
[340259664,1728937843122,-1036.36557,0.000385,14]
[340259665,1728937843131,-1036.36557,0.000385,14]
[340259666,1728937843140,-1036.36557,0.000385,14]
[340259667,1728937843149,-1036.365575,0.000385,14]
[340259668,1728937843158,-790.509405,0.000385,14]
[340259670,1728937843169,-790.509405,0.000385,14]
[340259672,1728937843178,-790.509405,0.000385,14]
[340259673,1728937843188,-790.509401,0.000385,14]
[340259674,1728937843198,-151.0,0.000385,14]
[340259675,1728937843209,-151.0,0.000385,14]
[340259676,1728937843218,-1011.673426,0.000385,14]
[340259677,1728937843228,-1011.673431,0.000385,14]
[340259678,1728937843238,-172.094316,0.000385,14]
[340259679,1728937843248,-172.094318,0.000385,14]
[340259681,1728937843258,-1949.067252,0.000385,14]
[340259682,1728937843267,-1949.067252,0.000385,14]
[340259683,1728937843278,-1949.067252,0.000385,14]
[340259684,1728937843290,-1949.06725,0.000385,14]
[340259685,1728937843300,-150.112233,0.000389,10]
[340259686,1728937843309,-573.37825968,0.00038958,60]
[340259687,1728937843320,-500.0,0.00038958,60]
[340259688,1728937843332,-465.98660972,0.00038958,2]
[340259689,1728937843341,-7544.13,0.00038958,60]
[340259690,1728937843351,-500.0,0.00038958,60]
[340259691,1728937843361,-5049.84,0.00038958,21]
[340259692,1728937843371,-150.112233,0.00039,6]
[340259693,1728937843383,-228.0,0.00039,2]
[340259695,1728937843393,-228.0,0.00039,2]
[340259697,1728937843403,-228.0,0.00039,2]
[340259699,1728937843413,-2500.0,0.00039089,5]
[340259700,1728937843423,-2500.0,0.00039089,5]
[340259701,1728937843434,-13641.9857351,0.00039092,5]
[340259702,1728937843445,-150.112233,0.000391,6]
[340259703,1728937843455,-500.0,0.00039102,60]
[340259704,1728937843465,-500.0,0.00039102,60]
[340259705,1728937843475,-500.0,0.00039102,60]
[340259706,1728937843484,-500.0,0.00039102,60]
[340259707,1728937843494,-151.0,0.00039102,14]
[340259708,1728937843503,-151.0,0.00039102,14]
[340259709,1728937843513,-500.0,0.00039102,60]
[340259710,1728937843522,-181.304124,0.00039102,14]
[340259711,1728937843532,-181.304124,0.00039102,14]
[340259712,1728937843542,-181.304124,0.00039102,14]
[340259713,1728937843552,-181.304124,0.00039102,14]
[340259714,1728937843562,-500.0,0.00039102,60]
[340259715,1728937843572,-2451.264627,0.00039102,14]
[340259716,1728937843582,-2451.264627,0.00039102,14]
[340259717,1728937843592,-2451.264627,0.00039102,14]
[340259718,1728937843602,-2451.264627,0.00039102,14]
[340259719,1728937843611,-500.0,0.00039102,60]
[340259720,1728937843622,-2642.069196,0.00039102,14]
[340259721,1728937843632,-2642.069196,0.00039102,14]
[340259722,1728937843642,-500.0,0.00039102,60]
[340259723,1728937843651,-2642.069196,0.00039102,14]
[340259724,1728937843661,-2642.069196,0.00039102,14]
[340259725,1728937843671,-500.0,0.00039102,60]
[340259726,1728937843681,-294.17979881,0.00039102,30]
[340259727,1728937843691,-500.0,0.00039102,60]
[340259728,1728937843701,-500.0,0.00039102,60]
[340259729,1728937843711,-500.0,0.00039102,60]
[340259730,1728937843722,-500.0,0.00039102,60]
[340259731,1728937843736,-500.0,0.00039102,60]
[340259732,1728937843749,-500.0,0.00039102,60]
[340259733,1728937843759,-500.0,0.00039102,60]
[340259734,1728937843844,-500.0,0.00039102,60]
[340259735,1728937843854,-500.0,0.00039102,60]
[340259736,1728937843864,-500.0,0.00039102,60]
[340259737,1728937843874,-500.0,0.00039102,60]
[340259738,1728937843883,-1950.61,0.00039102,60]
[340259739,1728937843893,-500.0,0.00039102,60]
[340259740,1728937843903,-500.0,0.00039102,60]
[340259741,1728937843913,-500.0,0.00039102,60]
[340259742,1728937843923,-150.112233,0.000392,5]
[340259743,1728937843933,-500.0,0.0003929,120]
[340259744,1728937843942,-502.43,0.0003929,120]
[340259745,1728937843951,-150.112233,0.000393,9]
[340259746,1728937843962,-307.6666806,0.00039315,2]
[340259747,1728937843978,-605.4551509,0.0003936,16]
[340259748,1728937843988,-526.0,0.00039382,2]
[340259749,1728937843999,-1806.0,0.00039382,2]
[340259750,1728937844008,-1157.0,0.00039382,2]
[340259751,1728937844019,-150.112233,0.000394,6]
[340259752,1728937844028,-1608.65344922,0.00039427,2]
[340259753,1728937844038,-151.0,0.00039448,14]
[340259754,1728937844049,-151.0,0.00039448,14]
[340259755,1728937844058,-151.0,0.00039448,14]
[340259756,1728937844069,-181.304124,0.00039448,14]
[340259757,1728937844079,-181.304124,0.00039448,14]
[340259758,1728937844088,-2451.264627,0.00039448,14]
[340259759,1728937844099,-2451.264627,0.00039448,14]
[340259760,1728937844110,-2642.069196,0.00039448,14]
[340259761,1728937844120,-2642.069196,0.00039448,14]
[340259762,1728937844130,-367.89133882,0.000395,2]
[340259763,1728937844141,-13641.9857351,0.00039508,5]
[340259764,1728937844152,-40925.9572053,0.00039509,5]
[340259765,1728937844162,-40925.9572053,0.00039517,5]
[340259766,1728937844174,-27283.9714702,0.00039518,5]
[340259767,1728937844185,-13641.9857351,0.00039526,5]
[340259768,1728937844196,-151.0,0.00039528,14]
[340259769,1728937844207,-151.0,0.00039528,14]
[340259770,1728937844220,-2055.026471,0.00039528,14]
[340259771,1728937844232,-2055.026471,0.00039528,14]
[340259772,1728937844243,-151.0,0.00039528,14]
[340259773,1728937844253,-151.0,0.00039528,14]
[340259774,1728937844263,-2055.026471,0.00039528,14]
[340259775,1728937844273,-2055.026471,0.00039528,14]
[340259776,1728937844284,-151.0,0.00039528,14]
[340259777,1728937844295,-268.206716,0.00039528,14]
[340259778,1728937844306,-503.272938,0.00039528,14]
[340259779,1728937844317,-503.272938,0.00039528,14]
[340259780,1728937844327,-503.272938,0.00039528,14]
[340259781,1728937844338,-503.272938,0.00039528,14]
[340259782,1728937844348,-1444.882556,0.00039528,14]
[340259783,1728937844358,-1444.882556,0.00039528,14]
[340259784,1728937844370,-151.0,0.00039528,14]
[340259785,1728937844380,-151.0,0.00039528,14]
[340259786,1728937844390,-1444.882556,0.00039528,14]
[340259787,1728937844400,-151.0,0.00039528,14]
[340259788,1728937844411,-1444.882556,0.00039528,14]
[340259789,1728937844421,-698.94667,0.00039528,14]
[340259790,1728937844431,-698.94667,0.00039528,14]
[340259791,1728937844442,-151.0,0.00039528,14]
[340259792,1728937844453,-151.0,0.00039528,14]
[340259793,1728937844464,-151.0,0.00039528,14]
[340259794,1728937844474,-151.0,0.00039528,14]
[340259795,1728937844483,-151.0,0.00039528,14]
[340259796,1728937844493,-151.0,0.00039528,14]
[340259797,1728937844503,-151.0,0.00039528,14]
[340259798,1728937844515,-151.0,0.00039528,14]
[340259799,1728937844526,-151.0,0.00039528,14]
[340259800,1728937844537,-151.0,0.00039528,14]
[340259801,1728937844548,-224.015403,0.00039528,14]
[340259802,1728937844558,-385.508593,0.00039528,14]
[340259803,1728937844568,-385.508593,0.00039528,14]
[340259804,1728937844577,-385.508593,0.00039528,14]
[340259805,1728937844587,-385.508593,0.00039528,14]
[340259806,1728937844597,-181.304124,0.00039528,14]
[340259807,1728937844609,-181.304124,0.00039528,14]
[340259808,1728937844619,-181.304124,0.00039528,14]
[340259809,1728937844629,-181.304124,0.00039528,14]
[340259810,1728937844639,-181.304124,0.00039528,14]
[340259811,1728937844651,-181.304124,0.00039528,14]
[340259812,1728937844663,-181.304124,0.00039528,14]
[340259813,1728937844674,-181.304124,0.00039528,14]
[340259814,1728937844684,-2451.264627,0.00039528,14]
[340259815,1728937844694,-2451.264627,0.00039528,14]
[340259816,1728937844705,-2451.264627,0.00039528,14]
[340259817,1728937844717,-2451.264627,0.00039528,14]
[340259818,1728937844729,-2763.604504,0.00039528,14]
[340259819,1728937844743,-2763.604504,0.00039528,14]
[340259820,1728937844753,-2451.264627,0.00039528,14]
[340259821,1728937844763,-2451.264627,0.00039528,14]
[340259822,1728937844775,-2451.264627,0.00039528,14]
[340259823,1728937844785,-2451.264627,0.00039528,14]
[340259824,1728937844796,-2763.604504,0.00039528,14]
[340259825,1728937844807,-2763.604504,0.00039528,14]
[340259826,1728937844817,-2642.069196,0.00039528,14]
[340259827,1728937844829,-2642.069196,0.00039528,14]
[340259828,1728937844839,-2642.069196,0.00039528,14]
[340259829,1728937844850,-2642.069196,0.00039528,14]
[340259830,1728937844863,-2642.069196,0.00039528,14]
[340259831,1728937844874,-2642.069196,0.00039528,14]
[340259832,1728937844884,-2642.069196,0.00039528,14]
[340259833,1728937844895,-2642.069196,0.00039528,14]
[340259834,1728937844906,-1000.0,0.00039528,2]
[340259835,1728937844916,-1000.0,0.00039528,2]
[340259836,1728937844927,-1000.0,0.00039528,2]
[340259837,1728937844937,-1000.0,0.00039528,2]
[340259838,1728937844947,-1000.0,0.00039528,2]
[340259839,1728937844957,-654.15268788,0.00039528,2]
[340259840,1728937844968,-151.0,0.00039536,14]
[340259841,1728937844980,-151.0,0.00039536,14]
[340259842,1728937844990,-2274.596226,0.00039536,14]
[340259843,1728937845001,-2274.596226,0.00039536,14]
[340259844,1728937845011,-751.441467,0.00039536,14]
[340259845,1728937845021,-751.441467,0.00039536,14]
[340259846,1728937845030,-151.0,0.00039536,14]
[340259847,1728937845039,-151.0,0.00039536,14]
[340259848,1728937845049,-2055.026471,0.00039536,14]
[340259849,1728937845058,-151.0,0.00039536,14]
[340259850,1728937845068,-2055.026471,0.00039536,14]
[340259851,1728937845078,-151.0,0.00039536,14]
[340259852,1728937845087,-256.736941,0.00039536,14]
[340259853,1728937845097,-503.272938,0.00039536,14]
[340259854,1728937845106,-503.272938,0.00039536,14]
[340259855,1728937845116,-503.272938,0.00039536,14]
[340259856,1728937845125,-503.272938,0.00039536,14]
[340259857,1728937845135,-1924.075227,0.00039536,14]
[340259858,1728937845144,-1924.075227,0.00039536,14]